Cogmind - Beta 14 *** ADVENTURER MODE // 2025.03.03 @ 18:38:13 // Winter2019/RPGLIKE Player: Gallgagger Result: Destroyed by B-48 Gladiator with Mace Performance ------------- Evolutions (4) 2000 Regions Visited (10) 2000 Robots Destroyed (196) 980 Value Destroyed (7038) 7038 Prototype IDs (3) 60 Alien Tech Used (0) 0 Bonus (5059) 5059 TOTAL SCORE: 17137 Bonus ------- High Alert Combat Kills 1630 Follower Combat Kills 1165 Entered Garrisons 600 Used RIF Installer 1500 Entered DSFs 500 Friendly Fire -336 Cogmind --------- Core Integrity 0/1400 Matter 84/300 Energy 365/365 System Corruption 9% Temperature Cool (0) Movement Rolling (110) Ox2 Location -6/Garrison Parts ------- > --- POWER (2) -------- Neutrino Core Micro Fission Core > --- PROPULSION (3) --- Wheel > --- UTILITY (10) ----- Advanced Sensor Array Signal Interpreter Improved Signal Interpreter Improved Salvage Targeting Computer Target Analyzer Core Analyzer Core Analyzer Armor Integrity Analyzer Improved Light Armor Plating Layered Medium Armor Plating > --- WEAPON (3) ------- Coil Gun Coil Gun Lance > --- INVENTORY (3) ---- Battle Rifle Battle Rifle Dirty Datajack (20) Peak State ------------ > --- POWER ------------ Neutrino Core Micro Fission Core > --- PROPULSION ------- Wheel Wheel Wheel > --- UTILITY ---------- Signal Interpreter Improved Salvage Targeting Computer Core Analyzer Core Analyzer Core Analyzer Armor Integrity Analyzer Improved Weapon Cycler Tower Shield > --- WEAPON ----------- Heavy Riot Gun Long-range Proton Cannon Lance > --- INVENTORY -------- Battle Rifle Battle Rifle Dirty Datajack [Rating: 79] Favorites ----------- Power Light Ion Engine Engine Light Ion Engine Power Core Light Nuclear Core Propulsion Wheel Wheel Wheel Utility Signal Interpreter Device Sensor Array Processor Signal Interpreter Protection Scrap Shield Weapon Heavy Riot Gun Energy Gun Heavy Riot Gun Energy Cannon Long-range Proton Cannon Ballistic Gun Assault Rifle Ballistic Cannon Battle Cannon Piercing Weapon Makeshift Spear Special Melee Weapon Dirty Datajack Build | -11 -10 -10 -8 -8 -8 -8 -7 -7 -6 -6 ------- Run | Yrd Mat Sub Mat Gar Mat Gar Fac DSF Fac Gar Slots Evolved 14 | 4 . 5 1 . 3 . . . 1 . Power 1 | 1 . . . . . . . . . . Propulsion 2 | 1 . 1 . . . . . . . . Utility 9 | 1 . 3 1 . 3 . . . 1 . Weapon 2 | 1 . 1 . . . . . . . . Parts Attached 73 | 6 4 20 6 . 3 8 . 1 24 1 Power 7 | 2 1 . . . . 2 . . 2 . Engine 2 | 2 . . . . . . . . . . Core 5 | . 1 . . . . 2 . . 2 . Reactor . | . . . . . . . . . . . Propulsion 15 | 2 . 4 2 . . 1 . . 6 . Treads . | . . . . . . . . . . . Leg . | . . . . . . . . . . . Wheel 15 | 2 . 4 2 . . 1 . . 6 . Hover . | . . . . . . . . . . . Flight . | . . . . . . . . . . . Utility 21 | . 2 3 1 . 3 3 . 1 7 1 Device 5 | . 1 1 . . . 1 . 1 1 . Storage . | . . . . . . . . . . . Processor 9 | . 1 . 1 . 3 1 . . 3 . Hackware . | . . . . . . . . . . . Protection 7 | . . 2 . . . 1 . . 3 1 Artifact . | . . . . . . . . . . . Weapon 30 | 2 1 13 3 . . 2 . . 9 . Energy Gun 10 | . . 4 3 . . . . . 3 . Energy Cannon 5 | . . 1 . . . 1 . . 3 . Ballistic Gun 11 | 2 1 5 . . . . . . 3 . Ballistic Cannon 1 | . . 1 . . . . . . . . Launcher . | . . . . . . . . . . . Special Weapon . | . . . . . . . . . . . Impact Weapon . | . . . . . . . . . . . Slashing Weapon . | . . . . . . . . . . . Piercing Weapon 2 | . . 1 . . . 1 . . . . Special Melee Weapon 1 | . . 1 . . . . . . . . Unidentified Prototypes 3 | . . 1 2 . . . . . . . Parts Lost 6 | . . . . . . . . . 5 1 Power . | . . . . . . . . . . . Propulsion 4 | . . . . . . . . . 3 1 Utility 2 | . . . . . . . . . 2 . Weapon . | . . . . . . . . . . . Highest Loss Streak 2 | . . . . . . . . . 2 1 To Critical Strikes 1 | . . . . . . . . . 1 . Average Slot Usage (%) 78 | . 96 89 56 57 58 64 . 65 89 91 Engine 5 | . 12 8 4 4 4 2 . . . . Core 7 | . 11 8 4 4 4 5 . 8 10 11 Wheel 16 | . 25 19 14 14 13 11 . 12 14 9 Device 7 | . 10 14 . . . 2 . 3 7 5 Processor 15 | . 10 8 7 9 13 22 . 25 36 42 Protection 5 | . . 5 9 9 8 5 . 4 1 5 Energy Gun 6 | . . 9 9 9 8 5 . 4 2 . Energy Cannon 1 | . . 2 . . . 2 . 4 2 . Ballistic Gun 6 | . 25 5 . . . . . . 6 11 Piercing Weapon 3 | . . 2 4 4 4 4 . 4 4 5 Special Melee Weapon 1 | . . 3 . . . . . . . . Peak Build Rating 79 | 6 10 46 49 49 61 79 79 79 79 66 Average Rating 41 | 4 9 25 48 49 53 70 79 78 64 65 On Entrance 47 | . 6 10 46 49 49 61 79 79 79 66 Naked Turns . | . . . . . . . . . . . Heaviest Build 80 | 9 13 74 74 74 74 80 74 74 74 44 Greatest Support 46 | 26 26 46 46 30 30 30 30 30 30 30 Greatest Overweight (x) 7 | 1 . 2 7 2 2 2 2 2 3 2 Average Overweight (x) 1 | . . . 2 2 2 2 2 2 1 1 Largest Inventory Capacity 3 | . 1 3 3 3 3 3 3 3 3 3 Average Capacity 2 | . . 2 3 3 3 3 3 3 3 3 Most Carried 3 | . 1 3 3 3 3 3 3 3 3 3 Average Carried 2 | . . 2 3 3 3 3 3 3 3 3 Final Capacity 3 | . 1 3 3 3 3 3 3 3 3 3 Final Carried 3 | . 1 3 3 3 3 3 3 3 3 3 Class Distribution -------------------- 72% | Hacker-Mutant 19% | Hacker-Assassin 4% | Hacker-Skirmisher Dominant Class ---------------- Hacker-Mutant | -10/Materials Hacker-Assassin | -10/Subcaves Hacker-Mutant | -8/Materials Hacker-Mutant | -8/Garrison Hacker-Mutant | -8/Materials Hacker-Mutant | -8/Garrison Hacker-Mutant | -7/Factory Hacker-Mutant | -7/DSF Hacker-Mutant | -6/Factory Hacker-Mutant | -6/Garrison Resources | -11 -10 -10 -8 -8 -8 -8 -7 -7 -6 -6 ----------- Run | Yrd Mat Sub Mat Gar Mat Gar Fac DSF Fac Gar Matter Collected 2162 | 183 620 492 30 52 30 91 . 17 620 27 Remotely . | . . . . . . . . . . . Salvage Created 7807 | . 1301 312 1156 1292 124 654 . 549 2205 214 Parts 508 | . 89 30 83 59 4 72 . 25 130 16 Haulers Intercepted 2 | . . . 1 . 1 . . . . . Recyclers Shooed 4 | . 2 . 2 . . . . . . . Parts Field Recycled . | . . . . . . . . . . . Retrieved Matter . | . . . . . . . . . . . Parts Self-Destructed 19 | . . 19 . . . . . . . . Prevented 1 | . . 1 . . . . . . . . Kills | -11 -10 -10 -8 -8 -8 -8 -7 -7 -6 -6 ------- Run | Yrd Mat Sub Mat Gar Mat Gar Fac DSF Fac Gar Combat Hostiles Destroyed 169 | . 35 11 33 24 . 22 . 9 32 3 Melee 11 | . . . . 7 . 2 . . 2 . Guns 105 | . 35 5 22 15 . 7 . . 18 3 Cannons 25 | . . 4 . . . 9 . 9 3 . AOE 20 | . . . 7 2 . 4 . . 7 . Classes Destroyed 21 | . 4 2 9 1 . 2 . 2 1 . Worker 6 | . . . 2 . . . . . 4 . Builder 6 | . . . 3 . . . . . 3 . Hauler 2 | . . . 1 . 1 . . . . . Recycler 5 | . 1 . 1 . . . . . 3 . Mechanic 1 | . . . 1 . . . . . . . Operator 3 | . . . 1 . . . . . 2 . Turret 2 | . . 2 . . . . . . . . Watcher 11 | . 3 . 2 1 2 . . . 3 . Swarmer 35 | . 3 2 11 3 . 5 . 4 5 2 Saboteur 1 | . . . . . . . . . 1 . Grunt 71 | . 32 1 12 9 . 2 . 1 14 . Brawler 7 | . . . 1 2 . 1 . . 3 . Duelist 6 | . . . . . . 4 . . 2 . Protector 1 | . . . 1 . . . . . . . Sentry 24 | . . . 7 7 . 8 . . 2 . Specialist 3 | . . . . . . . . 3 . . Hunter 4 | . . . 1 1 . . . . 2 . Programmer 6 | . . . . 2 . 1 . . 3 . Heavy 1 | . . . . . . . . 1 . . Behemoth 2 | . . . . . . 1 . . . 1 Subdweller 8 | . . 8 . . . . . . . . Savage 1 | . . . . . . . . . 1 . Best Kill Streak 11 | . 7 4 7 4 3 5 . 3 11 2 Combat Bots Only 7 | . 5 2 4 4 . 5 . 3 7 2 Max Kills in Single Turn 4 | . 2 1 3 2 1 3 . 1 4 1 Gunslinging 1 | . 1 . . 1 . . . . . . Exploded 3 | . . . 2 1 . 2 . . 3 . Melee 1 | . . . . 1 . 1 . . 1 . Uniques/NPCs Destroyed . | . . . . . . . . . . . Combat | -11 -10 -10 -8 -8 -8 -8 -7 -7 -6 -6 -------- Run | Yrd Mat Sub Mat Gar Mat Gar Fac DSF Fac Gar Hostile Shots Fired 785 | . 120 105 106 83 . 86 . 47 188 50 Missed 254 | . 40 38 38 25 . 24 . 17 56 16 Damage Taken 7346 | . 692 954 816 723 . 810 . 519 2107 725 Core 4674 | . 558 627 372 308 . 378 . 248 1646 537 Absorbed by Shields 24 | . . . . . . 24 . . . . Redirected to Core 3947 | . 420 493 348 300 . 326 . 248 1364 448 Ignored by Resistances 2091 | . 223 240 236 208 . 239 . 148 597 200 Core Remaining (%) 92 | 100 . 90 . . . 99 . 80 . . Volleys Fired 491 | . 101 101 64 56 4 35 . 22 84 24 Largest 2 | . 2 2 2 2 2 2 . 2 2 2 Hottest 141 | . 40 110 120 120 120 141 . 141 141 60 Shots Fired 949 | . 202 188 128 108 8 69 . 34 164 48 Gun 827 | . 202 140 128 108 8 46 . 12 135 48 Cannon 122 | . . 48 . . . 23 . 22 29 . Launcher . | . . . . . . . . . . . Special . | . . . . . . . . . . . Kinetic 448 | . 202 88 . . . . . . 110 48 Thermal 40 | . . 40 . . . . . . . . Explosive . | . . . . . . . . . . . Electromagnetic 461 | . . 60 128 108 8 69 . 34 54 . Robot Hit Streak 36 | . 24 36 14 20 7 10 . 13 15 26 Robot Miss Streak 8 | . 2 4 3 3 2 2 . 2 8 2 Penetration Max 1 | . . . . . . . . . 1 . Secondary Targets 16 | . 7 . 4 3 . 1 . . 1 . Max Gunslinging Chain 1 | . 1 . 1 1 . 1 . . 1 . Shots Hit Robots 740 | . 165 92 112 99 5 70 . 30 130 37 Core Hits 423 | . 71 26 79 78 3 56 . 15 87 8 Critical Kills 4 | . . 2 . . . . . . 2 . Critical Parts Destroyed 8 | . 2 . . . . . . . 5 1 Critical Strikes 14 | . 2 2 . 1 . . . . 7 2 Meltdown 2 | . . 2 . . . . . . . . Destroy 11 | . 2 . . . . . . . 7 2 Impale 1 | . . . . 1 . . . . . . Melee Attacks 53 | . . 17 . 21 . 7 . . 7 1 Impact . | . . . . . . . . . . . Slashing . | . . . . . . . . . . . Piercing 53 | . . 17 . 21 . 7 . . 7 1 Sneak Attacks 3 | . . . . . . . . . 3 . Combat Hostiles . | . . . . . . . . . . . Follow-up Attacks . | . . . . . . . . . . . Damage Inflicted 17849 | . 2040 1667 3041 3146 166 1919 . 793 4271 806 Guns 11314 | . 2040 847 2152 1822 166 730 . 223 2528 806 Cannons 2411 | . . 820 . . . 451 . 570 570 . Explosions 3200 | . . . 879 997 . 492 . . 832 . Melee 914 | . . . . 327 . 246 . . 341 . Ramming 10 | . . . 10 . . . . . . . Kinetic 5520 | . 2040 590 . . . . . . 2084 806 Thermal 3853 | . . 653 879 997 . 492 . . 832 . Explosive . | . . . . . . . . . . . Electromagnetic 7552 | . . 424 2152 1822 166 1181 . 793 1014 . Impact . | . . . . . . . . . . . Slashing . | . . . . . . . . . . . Piercing 914 | . . . . 327 . 246 . . 341 . Highest Corruption 9 | . . . . 1 1 1 . . 9 9 Average Corruption 2 | . . . . 1 1 1 . . 4 9 Corruption Purged . | . . . . . . . . . . . Corruption Blocked . | . . . . . . . . . . . Effects 37 | . . . . 12 . 6 . . 11 8 Message Errors 8 | . . . . 2 . 2 . . 3 1 Matter Fused 7 | . . . . 3 . 3 . . . 1 Heat Flow Errors 6 | . . . . 3 . . . . 3 . Energy Discharges 5 | . . . . 3 . 1 . . . 1 Data Loss (minor) 4 | . . . . . . . . . 2 2 Data Loss (major) 4 | . . . . 1 . . . . 1 2 Misfires 1 | . . . . . . . . . 1 . Alerts 1 | . . . . . . . . . . 1 Weapon Failures 1 | . . . . . . . . . 1 . Overload Shots . | . . . . . . . . . . . Overflow Damage 121 | . . . 4 9 . . . 4 104 . Projectiles 15 | . . . . . . . . 4 11 . Explosions 106 | . . . 4 9 . . . . 93 . Melee . | . . . . . . . . . . . Knockbacks . | . . . . . . . . . . . Impact . | . . . . . . . . . . . Kinetic . | . . . . . . . . . . . Secondary . | . . . . . . . . . . . Self-Inflicted Damage 442 | . . . 85 65 . . . . 292 . Shots 12 | . . . 2 4 . . . . 6 . Rammed 1 | . . . 1 . . . . . . . Targets Rammed 1 | . . . 1 . . . . . . . Kicked . | . . . . . . . . . . . Crushed . | . . . . . . . . . . . Highest Temperature 320 | . 90 111 320 164 . 79 . 28 163 237 Average Temperature 35 | . 26 30 169 98 . 30 . 8 42 119 Received Heat Transfer 2925 | . 522 273 423 378 . 318 . 153 502 356 Effects 1 | . . . 1 . . . . . . . Short Circuit 1 | . . . 1 . . . . . . . Siege Activations . | . . . . . . . . . . . Robots Corrupted 13 | . . 2 4 4 1 . . . 2 . Combat Hostiles 7 | . . 1 4 . . . . . 2 . Parts Fried 49 | . . 2 10 13 1 5 . 13 5 . Impact Corruptions . | . . . . . . . . . . . Robots Melted 2 | . . 2 . . . . . . . . Combat Hostiles 2 | . . 2 . . . . . . . . Parts Melted 3 | . . 1 2 . . . . . . . Heat Transferred 4301 | . . 851 950 1200 . 700 . . 600 . Parts Sabotaged . | . . . . . . . . . . . Parts Stolen . | . . . . . . . . . . . Parts Stripped . | . . . . . . . . . . . Power Chain Reactions 32 | . . . 13 11 . 3 . . 5 . Alert | -11 -10 -10 -8 -8 -8 -8 -7 -7 -6 -6 ------- Run | Yrd Mat Sub Mat Gar Mat Gar Fac DSF Fac Gar Peak Influence 1548 | . 505 . 839 1548 898 1258 572 617 853 658 Initial 649 | . . . . 252 649 511 572 354 280 513 Average 635 | . 273 . 517 974 770 890 572 490 652 552 Maximum Alert Level 4 | . 2 . 3 4 3 4 2 2 3 2 Low Security (%) 8 | 100 32 . 10 . . . . . . . Level 1 18 | . 43 . 19 13 . . . 29 9 . Level 2 34 | . 24 . 45 16 24 15 100 70 50 100 Level 3 26 | . . . 24 18 75 67 . . 40 . Level 4 12 | . . . . 51 . 17 . . . . Level 5 . | . . . . . . . . . . . High Security . | . . . . . . . . . . . Max Security . | . . . . . . . . . . . Sterilizations 1 | . . . . . . . . 1 . . Squads Dispatched 34 | . 10 . 6 . 3 . . 2 13 . Investigation 21 | . 10 . 2 . 2 . . . 7 . Extermination 3 | . . . . . . . . . 3 . Reinforcement 5 | . . . 2 . . . . 2 1 . Assault 3 | . . . 1 . . . . . 2 . Garrison 2 | . . . 1 . 1 . . . . . Intercept . | . . . . . . . . . . . Searches Triggered . | . . . . . . . . . . . Construction Impeded 1 | . . . 1 . . . . . . . Haulers Reinforced . | . . . . . . . . . . . Active Scanning Responses . | . . . . . . . . . . . Cargo Convoy Interrupts . | . . . . . . . . . . . Stealth | -11 -10 -10 -8 -8 -8 -8 -7 -7 -6 -6 --------- Run | Yrd Mat Sub Mat Gar Mat Gar Fac DSF Fac Gar Distress Signals 6 | . 3 . 2 1 . . . . . . Communications Jammed . | . . . . . . . . . . . Distress Signals . | . . . . . . . . . . . Times Spotted 269 | . 41 35 52 40 5 31 . 13 45 7 Peak Tracking Total 8 | . 4 4 5 8 2 6 . 5 7 7 Tactical Retreats 17 | . 2 4 5 1 . 1 . 1 1 2 Traps | -11 -10 -10 -8 -8 -8 -8 -7 -7 -6 -6 ------- Run | Yrd Mat Sub Mat Gar Mat Gar Fac DSF Fac Gar Traps Triggered 33 | . 3 4 . 9 . 4 . 2 11 . Indirectly . | . . . . . . . . . . . Trap Hack Attempts . | . . . . . . . . . . . Triggered . | . . . . . . . . . . . Disarmed . | . . . . . . . . . . . Reprogrammed . | . . . . . . . . . . . Reused . | . . . . . . . . . . . Traps Extracted . | . . . . . . . . . . . Installed . | . . . . . . . . . . . Triggered 3 | . . 3 . . . . . . . . Machines | -11 -10 -10 -8 -8 -8 -8 -7 -7 -6 -6 ---------- Run | Yrd Mat Sub Mat Gar Mat Gar Fac DSF Fac Gar Machines Disabled 12 | . . 2 2 2 . 2 . . 4 . Max in Single Turn 3 | . . 1 1 1 . 1 . . 3 . Garrison Relay 2 | . . . . 2 . . . . . . Machines Repaired . | . . . . . . . . . . . Machines Dismantled . | . . . . . . . . . . . Machines Sabotaged 1 | . 1 . . . . . . . . . Overloaded Fab Kills . | . . . . . . . . . . . Hacking | -11 -10 -10 -8 -8 -8 -8 -7 -7 -6 -6 --------- Run | Yrd Mat Sub Mat Gar Mat Gar Fac DSF Fac Gar Machines Accessed 41 | . 7 1 9 3 3 2 1 . 15 . Terminals 28 | . 5 . 6 3 1 2 1 . 10 . Fabricators . | . . . . . . . . . . . Repair Stations 1 | . 1 . . . . . . . . . Recycling Units 7 | . 1 . 2 . 1 . . . 3 . Scanalyzers 1 | . . . . . . . . . 1 . Garrison Access 3 | . . . 1 . 1 . . . 1 . Total Hacks 118 | . 22 4 27 6 5 4 1 . 49 . Successful 76 | . 17 4 20 3 3 1 1 . 27 . Failed 42 | . 5 . 7 3 2 3 . . 22 . Catastrophic 6 | . . . 1 . 1 . . . 4 . Database Lockouts . | . . . . . . . . . . . Manual 80 | . 19 . 17 . 2 . . . 42 . Terminals 96 | . 20 . 23 6 3 4 1 . 39 . Fabricators . | . . . . . . . . . . . Repair Stations 1 | . 1 . . . . . . . . . Recycling Units 13 | . 1 . 3 . 1 . . . 8 . Scanalyzers 1 | . . . . . . . . . 1 . Garrison Access 3 | . . . 1 . 1 . . . 1 . Terminal Hacks 36 | . 6 4 9 3 . 1 1 . 12 . Record 4 | . . 4 . . . . . . . . Robot Analysis 8 | . 3 . 3 . . . . . 2 . Open Door 1 | . . . . 1 . . . . . . Open DSF 2 | . . . . . . . 1 . 1 . Level Access Points 1 | . . . 1 . . . . . . . Branch Access Points 2 | . . . 1 . . . . . 1 . Emergency Access Points 2 | . 1 . . 1 . . . . . . Terminal Index 2 | . 1 . . . . . . . 1 . Garrison Index 1 | . . . . . . . . . 1 . Alert Level 3 | . 1 . 1 . . . . . 1 . Unreport Threat 3 | . . . 3 . . . . . . . Locate Traps 3 | . . . . . . . . . 3 . Recall Investigation 1 | . . . . . . . . . 1 . Recall Assault 1 | . . . . . . . . . 1 . Security Stations 2 | . . . . 1 . 1 . . . . Fabricator Hacks . | . . . . . . . . . . . Repair Station Hacks . | . . . . . . . . . . . Recycling Unit Hacks . | . . . . . . . . . . . Scanalyzer . | . . . . . . . . . . . Garrison Access Hacks 3 | . . . 1 . 1 . . . 1 . Unlock Access 3 | . . . 1 . 1 . . . 1 . Unauthorized Hacks 36 | . 11 . 9 . 2 . . . 14 . Terminals 24 | . 9 . 7 . 1 . . . 7 . Botnet 18 | . 4 . 6 . 1 . . . 7 . Operators 1 | . . . 1 . . . . . . . Sabotage 2 | . 2 . . . . . . . . . Search 3 | . 3 . . . . . . . . . Fabricators . | . . . . . . . . . . . Repair Stations 1 | . 1 . . . . . . . . . Patch 1 | . 1 . . . . . . . . . Recycling Units 10 | . 1 . 2 . 1 . . . 6 . Monitor 1 | . . . . . . . . . 1 . Reject 1 | . . . . . . . . . 1 . Recyclers 1 | . . . . . . . . . 1 . Mask 1 | . . . . . . . . . 1 . Tunnel 6 | . 1 . 2 . 1 . . . 2 . Scanalyzers 1 | . . . . . . . . . 1 . Extract 1 | . . . . . . . . . 1 . Garrison Access . | . . . . . . . . . . . Data Cores Recovered 2 | . . . 1 . . . . . 1 . Used . | . . . . . . . . . . . Hacking Detections 26 | . 5 . 6 3 1 1 . . 10 . Full Trace Events 3 | . . . 1 . 1 . . . 1 . Feedback Events . | . . . . . . . . . . . Feedback Blocked . | . . . . . . . . . . . Robot Schematics Acquired . | . . . . . . . . . . . Robots Built . | . . . . . . . . . . . Authchips . | . . . . . . . . . . . Time . | . . . . . . . . . . . Total Robot Build Rating . | . . . . . . . . . . . Part Schematics Acquired 4 | . . . . . . . . . 4 . Parts Built . | . . . . . . . . . . . Authchips . | . . . . . . . . . . . Time . | . . . . . . . . . . . Total Part Build Rating . | . . . . . . . . . . . Parts Repaired . | . . . . . . . . . . . Time . | . . . . . . . . . . . Parts Recycled . | . . . . . . . . . . . Recycled Matter . | . . . . . . . . . . . Retrieved Matter . | . . . . . . . . . . . Retrieved Components . | . . . . . . . . . . . Parts Scanalyzed . | . . . . . . . . . . . Part Schematics Acquired . | . . . . . . . . . . . Parts Damaged . | . . . . . . . . . . . Bothacking | -11 -10 -10 -8 -8 -8 -8 -7 -7 -6 -6 ------------ Run | Yrd Mat Sub Mat Gar Mat Gar Fac DSF Fac Gar Used RIF Installer 3 | . . . . 2 . 1 . . . . Alert ID Control 1 | . . . . 1 . . . . . . Structural Interface 1 | . . . . . . 1 . . . . Robots Hacked . | . . . . . . . . . . . Non-combat . | . . . . . . . . . . . Combat . | . . . . . . . . . . . Robot Hacks Applied . | . . . . . . . . . . . Relay Couplers Released 6 | . . . . 4 . 2 . . . . Machine Destruction 4 | . . . . 4 . . . . . . Programmers 2 | . . . . . . 2 . . . . Fabnet Peak Effective % . | . . . . . . . . . . . Robots Rewired 15 | . . . 1 12 . 2 . . . . Allies Hacked . | . . . . . . . . . . . Hacks Repelled . | . . . . . . . . . . . Allies | -11 -10 -10 -8 -8 -8 -8 -7 -7 -6 -6 -------- Run | Yrd Mat Sub Mat Gar Mat Gar Fac DSF Fac Gar Total Allies 15 | . . . 1 12 . 2 . . . . Largest Group 7 | . . . . 7 6 6 . 2 1 . Highest-Rated Group 240 | . . . . 240 219 219 . 45 20 . Highest-Rated Ally 40 | . . . . 40 40 40 . 25 20 . Total Orders . | . . . . . . . . . . . Ally Attacks 142 | . . . . 73 15 49 . 4 1 . Total Damage 2891 | . . . . 1422 451 867 . 130 21 . Kills 40 | . . . . 20 5 13 . 1 1 . Allies Corrupted 1 | . . . . 1 . . . . . . Allies Melted 1 | . . 1 . . . . . . . . Intel | -11 -10 -10 -8 -8 -8 -8 -7 -7 -6 -6 ------- Run | Yrd Mat Sub Mat Gar Mat Gar Fac DSF Fac Gar Robot Analysis Total 8 | . 3 . 3 . . . . . 2 . Derelict Logs Recovered 3 | . . 3 . . . . . . . . Drone Launches . | . . . . . . . . . . . Drone Recoveries . | . . . . . . . . . . . Exploration | -11 -10 -10 -8 -8 -8 -8 -7 -7 -6 -6 ------------- Run | Yrd Mat Sub Mat Gar Mat Gar Fac DSF Fac Gar Turns Passed 9991 | 33 1477 2939 1197 1368 113 953 3 234 1456 218 Spaces Moved 7518 | 28 1213 2385 782 882 88 680 3 152 1156 149 Core 5 | 5 . . . . . . . . . . Treads . | . . . . . . . . . . . Legs . | . . . . . . . . . . . Wheels 7513 | 23 1213 2385 782 882 88 680 3 152 1156 149 Hover . | . . . . . . . . . . . Flight . | . . . . . . . . . . . Fastest Speed 50 | 50 90 90 109 110 110 110 110 110 80 95 Average Speed 101 | 86 90 99 113 110 110 110 110 110 96 95 Slowest Speed 185 | 100 90 120 185 110 110 110 110 110 125 110 Overloaded Moves . | . . . . . . . . . . . Propulsion Burnouts . | . . . . . . . . . . . Robots Hopped . | . . . . . . . . . . . Cave-ins Triggered . | . . . . . . . . . . . Exploration Rate (%) 60 | 4 100 96 71 89 15 80 . 95 32 20 Regions Visited 10 Branch Regions 1 Pre-discovered Areas 6 | . 1 . 2 . 1 . . . 2 . Known Exits Taken 6 | . 1 1 1 . 1 . 1 . 1 . Unknown Exits Taken 1 | 1 . . . . . . . . . . Scrap Searched 7 | . . 7 . . . . . . . . Spaces Dug 1 | . . 1 . . . . . . . . Terrain Destroyed 147 | . . 1 61 31 . 7 . . 44 3 Melee 1 | . . 1 . . . . . . . . Projectile 6 | . . . . . . . . . 3 3 AOE 140 | . . . 61 31 . 7 . . 41 . Terrain Rammed . | . . . . . . . . . . . Walls Destroyed . | . . . . . . . . . . . Machines Disabled . | . . . . . . . . . . . Actions | -11 -10 -10 -8 -8 -8 -8 -7 -7 -6 -6 --------- Run | Yrd Mat Sub Mat Gar Mat Gar Fac DSF Fac Gar Total 8925 | 33 1404 2743 966 1149 94 813 2 193 1352 176 Wait 357 | . 43 166 56 38 . 9 . 5 39 1 Move 7507 | 27 1212 2384 781 881 87 678 2 151 1155 149 Hop . | . . . . . . . . . . . Pick Up 4 | . 1 3 . . . . . . . . Fast Attach 56 | 6 2 5 6 . 3 8 . 1 24 1 Attach 1 | . . 1 . . . . . . . . Detach . | . . . . . . . . . . . Swap 16 | . 2 14 . . . . . . . . Drop 23 | . 2 8 5 . . 6 . . 2 . Fire 491 | . 101 101 64 56 4 35 . 22 84 24 Melee 53 | . . 17 . 21 . 7 . . 7 1 Ram 1 | . . . 1 . . . . . . . Kick . | . . . . . . . . . . . Crush . | . . . . . . . . . . . Escape Stasis 80 | . . . . 56 . 16 . 8 . . Rewire 83 | . . . 3 69 . 11 . . . . Trap . | . . . . . . . . . . . Miscellaneous 253 | . 41 44 50 28 . 43 . 6 41 . Route ------- -11/Scrapyard -10/Materials (discovered 5 exits: [*Mat x3] / *Min / *Sub) -10/Subcaves (discovered 3 exits: *Mat x2 / [*Rec]) -8/Materials (discovered 4 exits: *Fac x3 / Gar) -8/Garrison (discovered 4 exits: *Mat x4) -8/Materials -8/Garrison (discovered 3 exits: *Fac x3) -7/Factory (discovered 2 exits: [Low] / DSF) -7/DSF -6/Factory (discovered 4 exits: [*Fac] / *Low x2 / Gar) -6/Garrison History --------- Turn | Location | Event 1 | -11/Scrapyard | Upgraded with Power slot (x1) 1 | -11/Scrapyard | Upgraded with Propulsion slot (x1) 1 | -11/Scrapyard | Upgraded with Utility slot (x1) 1 | -11/Scrapyard | Upgraded with Weapon slot (x1) 14 | -11/Scrapyard | Discovered new exit (range 16) 34 | -11/Scrapyard | Entered Materials 193 | -10/Materials | Discovered new exit (range 13) 217 | -10/Materials | Discovered new exit (range 16) 486 | -10/Materials | Discovered new exit (range 15) 496 | -10/Materials | Build established: Hacker-Mutant 544 | -10/Materials | Identified exit to Mines 624 | -10/Materials | Discovered new exit (range 16) 674 | -10/Materials | Reached level 2 1053 | -10/Materials | Reached level 3 1388 | -10/Materials | Reached level 4 1498 | -10/Materials | Discovered new exit (range 11) 1506 | -10/Materials | Identified exit to Subcaves 1511 | -10/Materials | Entered Subcaves 1543 | -10/Subcaves | Visited Clippyterm 1546 | -10/Subcaves | Learned Factory fabricator intel 1689 | -10/Subcaves | Upgraded with Utility slot (x1) 1706 | -10/Subcaves | A swath of the cavern ceiling suddenly collapsed 1966 | -10/Subcaves | Identified exit to Materials 2004 | -10/Subcaves | Build established: Hacker-Skirmisher 2051 | -10/Subcaves | Shifting Twisted Machinery released Spk. Treads 2052 | -10/Subcaves | Shifting Twisted Machinery released Sub. Beam Cannon 2098 | -10/Subcaves | Upgraded with Weapon slot (x1) 2220 | -10/Subcaves | A swath of the cavern ceiling suddenly collapsed 2289 | -10/Subcaves | Learned Materials trap positions 2311 | -10/Subcaves | Discovered exit to Materials (range 14) 2354 | -10/Subcaves | Upgraded with Utility slot (x2) 2424 | -10/Subcaves | Build established: Hacker-Assassin 2931 | -10/Subcaves | Shifting Twisted Machinery released Battle Rifle 2931 | -10/Subcaves | Shifting Twisted Machinery released Mak. Spear 3088 | -10/Subcaves | Learned Materials terminal intel 3223 | -10/Subcaves | Discovered new exit (range 13) 3268 | -10/Subcaves | Reached level 5 3416 | -10/Subcaves | Upgraded with Propulsion slot (x1) 3515 | -10/Subcaves | Shifting Twisted Machinery released Mak. Axe 3521 | -10/Subcaves | Shifting Twisted Machinery released Hvy. Riot Gun 4063 | -10/Subcaves | Visited 4L-MR0's lab 4073 | -10/Subcaves | Found Prototype Protection 4073 | -10/Subcaves | Identified Tower Shield 4075 | -10/Subcaves | Attached Tower Shield, gained temporary slots: Power, Propulsion x2, Utility x2, Weapon x2 4382 | -10/Subcaves | Build established: Hacker-Mutant 4450 | -10/Subcaves | Entered Materials 4451 | -8/Materials | Loaded intel: 22 trap records 4452 | -8/Materials | Loaded intel: 11 terminal locations 4452 | -8/Materials | Reached level 6 4479 | -8/Materials | Reached level 7 4729 | -8/Materials | Garrison activated, responded to threat 4771 | -8/Materials | Upgraded with Utility slot (x1) 4796 | -8/Materials | Reached level 8 5056 | -8/Materials | Reached level 9 5108 | -8/Materials | Discovered new exit (range 9) 5188 | -8/Materials | Identified exit to Factory 5250 | -8/Materials | First assault squad dispatched 5505 | -8/Materials | Reached level 10 5646 | -8/Materials | Identified exit to Garrison 5647 | -8/Materials | Entered Garrison 5858 | -8/Garrison | P-60 Hacker assimilated allied Rogue 3b 5889 | -8/Garrison | Triggered checkpoint 5894 | -8/Garrison | Learned Materials security intel 5911 | -8/Garrison | Reached level 11 5930 | -8/Garrison | Lost 3 allies 6045 | -8/Garrison | Triggered checkpoint 6048 | -8/Garrison | Triggered checkpoint 6061 | -8/Garrison | Triggered checkpoint 6101 | -8/Garrison | Triggered checkpoint 6110 | -8/Garrison | Reached level 12 6176 | -8/Garrison | Discovered new exit (range 14) 6185 | -8/Garrison | Triggered checkpoint 6188 | -8/Garrison | Discovered new exit (range 5) 6191 | -8/Garrison | Identified exit to Materials 6279 | -8/Garrison | Triggered checkpoint 6389 | -8/Garrison | Triggered checkpoint 6471 | -8/Garrison | Triggered checkpoint 6503 | -8/Garrison | Triggered checkpoint 6506 | -8/Garrison | Installed Relay Interface Framework 6553 | -8/Garrison | Discovered exit to Materials (range 11) 6656 | -8/Garrison | Discovered exit to Materials (range 9) 6695 | -8/Garrison | Triggered checkpoint 6720 | -8/Garrison | Garrison Relay disabled 6909 | -8/Garrison | Expanded RIF knowledge: Alert ID Control 6909 | -8/Garrison | Reached level 13 7015 | -8/Garrison | Entered Materials 7015 | -8/Materials | Accompanied by 6 allies 7080 | -8/Materials | Upgraded with Utility slot (x3) 7110 | -8/Materials | Garrison activated, responded to threat 7113 | -8/Materials | Identified exit to Garrison 7128 | -8/Materials | Entered Garrison 7128 | -8/Garrison | Accompanied by 6 allies 7256 | -8/Garrison | Triggered checkpoint 7257 | -8/Garrison | Triggered checkpoint 7262 | -8/Garrison | Triggered checkpoint 7343 | -8/Garrison | Discovered exit to Factory (range 12) 7352 | -8/Garrison | Expanded RIF knowledge: Structural Interface 7376 | -8/Garrison | Triggered checkpoint 7389 | -8/Garrison | Learned Factory security intel 7491 | -8/Garrison | Spotted B-75 Beast 7538 | -8/Garrison | Destroyed B-75 Beast 7706 | -8/Garrison | Triggered checkpoint 7739 | -8/Garrison | Discovered exit to Factory (range 7) 7802 | -8/Garrison | Triggered checkpoint 7805 | -8/Garrison | Reached level 14 7870 | -8/Garrison | Triggered checkpoint 7928 | -8/Garrison | Door terminal overloaded 8010 | -8/Garrison | Discovered exit to Factory (range 12) 8081 | -8/Garrison | Entered Factory 8081 | -7/Factory | Accompanied by 2 allies 8081 | -7/Factory | Discovered new exit (range 11) 8083 | -7/Factory | Loaded intel: 6 fabricator locations 8084 | -7/Factory | Identified exit to DSF 8084 | -7/Factory | Entered DSF 8084 | -7/DSF | Accompanied by 2 allies 8084 | -7/DSF | Reached level 15 8104 | -7/DSF | Additional patrols routed to DSF 8201 | -7/DSF | Discovered new exit (range 16) 8226 | -7/DSF | Identified exit to Factory 8241 | -7/DSF | Sterilization system engaged 8261 | -7/DSF | Ambient heat levels rising (+10) 8276 | -7/DSF | Ambient heat levels rising (+10) 8291 | -7/DSF | Ambient heat levels rising (+10) 8306 | -7/DSF | Ambient heat levels rising (+10) 8318 | -7/DSF | Entered Factory 8318 | -6/Factory | Accompanied by 1 ally 8320 | -6/Factory | Reached level 16 8459 | -6/Factory | Reached level 17 8460 | -6/Factory | Core integrity fell below 50% 8671 | -6/Factory | Identified exit to Lower Caves 8704 | -6/Factory | Discovered new exit (range 7) 8816 | -6/Factory | Core integrity fell below 20% 9070 | -6/Factory | Reached level 18 9235 | -6/Factory | Destroyed 7 combat bots 9367 | -6/Factory | Upgraded with Utility slot (x1) 9368 | -6/Factory | First assault squad dispatched 9773 | -6/Factory | Identified exit to Garrison 9774 | -6/Factory | Entered Garrison 9776 | -6/Garrison | Reached level 19 9782 | -6/Garrison | Triggered checkpoint 9810 | -6/Garrison | Spotted B-75 Beast 9969 | -6/Garrison | Destroyed B-75 Beast 9992 | -6/Garrison | Destroyed by B-48 Gladiator with Mace Last Messages --------------- 09942_ Slug penetrates B-75 Beast. 09949_ System corrupted: Substantial component data lost. 09951_ Slug penetrates B-75 Beast. 09960_ Knocked back. 09961_ Acquired 7 matter. 09963_ Slug penetrates B-75 Beast. 09963_ Slug penetrates Wall. 09963_ B-75 Beast suffers critical hit (Destroy). 09963_ Destroyed Imp. Medium Treads. 09966_ System corrupted: Substantial component data lost. 09967_ Knocked back. 09968_ Acquired 9 matter. 09969_ B-75 Beast destroyed. 09972_ Acquired 4 matter. 09975_ Acquired 1 matter. 09978_ Acquired Lyr. Medium Armor Plating. 09982_ Slug penetrates B-48 Gladiator. Map ----- +----------------------------------------------------+ | ?????????????????????????????????????????????????? | | ?????????????????????????????????????????????????? | | ?????????????????????????????????????????????????? | | ?????????????????????????????????????????????????? | | ?????????????????????????????????????????????????? | | ?????????????????????????????????????????????????? | | ?????????????????????????????????????????????????? | | ?????????????????????????????????????????????????? | | ??????????????????????????#######????????????????? | | ??????????????????????????#"""""#????????????????? | | ???????????????#+###"""##### ##????????????????? | | ???????????????# #????????????????? | | ???????????????# #????????????????? | | ???????????????# ############++#????????????????? | | #####??????????# #??????????# #????????????????? | | # #??????????# ^#??????????# #????????????????? | | # ############ ############++#######??????????? | | # #??????????? | | # #??????????? | | # #??????????? | | #################+#############+### #??????????? | | ????????????????# #???????????# #?# #??????????? | | ????????????????# #???????????# #?# #??????????? | | ????????????????# #???????????# #?# #??????????? | | ????????????????# #############[#?# #??????????? | | ????????????????# @b !!%!#?# #??????????? | | ????????????????###########!##![]## ##""""## #? | | ??????????????????????????###?#%### # | | ??????????????????????????????#=[ + # | | ??????????????????????????????##### + | | ??????????????????????????????????# ## ## # | | ??????????????????????????????????# #?? #????? | | ??????????????????????????????????" ??? ???? | | ??????????????????????????????????" ??? ?? | | ??????????????????????????????????" ???? ? | | ??????????????????????????????????" ??????? | | ??????????????????????????????????# ## ?????? | | ??????????????????????????????????# #? #????? | | ??????????????????????????????????? ?? ????? | | ??????????????????????????????????? ?? ???? | | ??????????????????????????????????? ??? ?????? | | ??????????????????????????????????? #??????????? | | ??????????????????????????????????? ???????????? | | ?????????????????????????????????????????????????? | | ?????????????????????????????????????????????????? | | ?????????????????????????????????????????????????? | | ?????????????????????????????????????????????????? | | ?????????????????????????????????????????????????? | | ?????????????????????????????????????????????????? | | ?????????????????????????????????????????????????? | +----------------------------------------------------+ Best States ------------- Heat Dissipation 97 Energy Generation 29 Energy Capacity 375 Matter Stores 300 Matter Capacity 300 Sight Range 16 Robot Scan Range 22 Terrain Scan Range 14 Terrain Scan Density 210 Armor Coverage 2800 Resistance: KI 20 Resistance: TH 20 Resistance: EX 20 Resistance: EM 20 Resistance: I 20 Resistance: S 20 Resistance: P 20 Weapon Cycling 20 Evasion (%) 42 Target Analysis 5 Core Analysis 9 Armor Integrity Analysis 30 Salvage Targeting 2 Offensive Hacking 20 Defensive Hacking 10 Item Schematics ----------------- Phase Cannon | -6/Factory | Extracted Arm. Wheel | -6/Factory | Extracted Energy Filter | -6/Factory | Extracted Adv. Targeting Computer | -6/Factory | Extracted Robot Schematics ------------------ None Fabricated ------------ Nothing Alien Tech Used ----------------- None Achievements -------------- Just Shoot The Terminal Challenges ------------ None RPGLIKE | -11 -10 -10 -8 -8 -8 -8 -7 -7 -6 -6 --------- Run | Yrd Mat Sub Mat Gar Mat Gar Fac DSF Fac Gar Levels Raised 18 | . 3 1 5 3 . 1 . 1 3 1 XP Earned 31140 | 4000 4691 1469 7357 4573 377 1345 1049 1242 4610 427 XP Spent 27985 | 2025 1550 6290 2660 . 6900 . . . 4060 4500 Upgrades 60 | 5 5 9 9 . 3 . . . 15 14 Power Slot 1 | 1 . . . . . . . . . . Propulsion Slot 2 | 1 . 1 . . . . . . . . Utility Slot 9 | 1 . 3 1 . 3 . . . 1 . Weapon Slot 2 | 1 . 1 . . . . . . . . Core Integrity 16 | 1 . . . . . . . . 11 4 Heat Dissipation 12 | . . . 8 . . . . . . 4 Mass Support 2 | . . . . . . . . . . 2 Inventory Capacity 3 | . 1 2 . . . . . . . . Sensor Range 3 | . . . . . . . . . 3 . Terrain Scan Density 2 | . . 2 . . . . . . . . Ranged Accuracy 4 | . . . . . . . . . . 4 Hack Attack % 2 | . 2 . . . . . . . . . Hack Defense % 2 | . 2 . . . . . . . . . Protomatter Created 3065 | . 504 283 653 486 . 471 . 41 627 . Integrity Restored 4978 | . 701 773 992 573 . 907 . 123 909 . Core 3271 | . 558 565 434 277 . 405 . 123 909 . Parts 1707 | . 143 208 558 296 . 502 . . . . Protomatter Decayed 1347 | . 179 129 57 526 . 302 . . 154 . Game ------ Seed VisualDroneArchive Manual? 0 Play Time 01:25:54 Cumulative 220.3 hours Start 2025.03.03 @ 07:46:39 End 2025.03.03 @ 18:38:13 Sessions 3 Manual Loads 0 Difficulty Adventurer Special Mode Winter2019/RPGLIKE Game No. 98 Rogue 0 Adventurer 98 Explorer 0 Win Type - Total 8 Types 2/1/2/2/1/0/0/0/0 Lore% 78 Gallery% 69 Achievement% 76 Wizard Run 0 Options --------- Layout 2 ASCII 0 Keyboard 0 Movement Numpad Keybinds 0 Fullscreen 2 Font 24/Smallcaps Map View 50x44 Zoom Use 0% Tactical HUD 1 Map Filters NONE Filters NONE Steam 1 RUN: bf4f6bb1-e049-4db8-9260-e1efd187c6f2